bitfinex/quotes_SOLUSD_20241115
["timestamp","ask_amount","ask_price","bid_price","bid_amount"]
[1731683892797,35.71369192,208.74,208.68,11.98]
[1731683893209,35.71369192,208.75,208.68,47.69369192]
[1731683893412,35.71369192,208.73,208.66,35.71369192]
[1731683893714,35.71369192,208.75,208.68,35.71369192]
[1731683893923,35.71369192,208.74,208.67,35.71369192]
[1731683894129,35.71369192,208.74,208.67,40.50579192]
[1731683894317,35.71369192,208.74,208.67,35.71369192]
[1731683894632,35.71369192,208.77,208.7,35.71369192]
[1731683895011,35.71369192,208.75,208.68,35.71369192]
[1731683895209,2.3948,208.78,208.66,20.0]
[1731683895210,35.71369192,208.76,208.69,35.71369192]
[1731683895637,38.10879192,208.76,208.69,35.71369192]
[1731683895823,2.3951,208.76,208.7,35.71369192]
[1731683896017,38.10879192,208.76,208.69,35.71369192]
[1731683896212,35.71369192,208.78,208.71,35.71369192]
[1731683897337,35.71369192,208.79,208.72,35.71369192]
[1731683897530,35.71369192,208.75,208.68,52.48559192]
[1731683898135,35.71369192,208.73,208.68,16.7719]
[1731683898328,35.71369192,208.72,208.65,35.71369192]
[1731683898533,35.71369192,208.72,208.65,40.50619192]
[1731683898737,35.71369192,208.71,208.65,4.7925]
[1731683899027,35.71369192,208.71,208.64,35.71369192]
[1731683899028,22.0444537,208.7,208.64,11.9823]
[1731683899216,22.0444537,208.69,208.64,11.9823]
[1731683899541,22.0444537,208.67,208.63,0.4742686]
[1731683899841,5.9881,208.75,208.63,27.3118223]
[1731683899842,22.0444537,208.7,208.63,27.3118223]
[1731683900042,22.0444537,208.69,208.63,5.2673686]
[1731683900239,22.0444537,208.69,208.63,0.4742686]
[1731683900415,22.0444537,208.7,208.63,27.3117223]
[1731683901145,22.0444537,208.64,208.63,0.4742686]
[1731683901534,0.12549,208.62,208.42,33.6964686]
[1731683901715,22.0444537,208.53,208.46,44.4344537]
[1731683902137,22.0444537,208.55,208.48,22.0444537]
[1731683902532,22.0444537,208.57,208.51,22.0444537]
[1731683902719,22.0444537,208.6,208.53,22.0444537]
[1731683903031,22.0444537,208.66,208.59,22.0444537]
[1731683903231,34.6995537,208.69,208.63,22.0444537]
[1731683903428,2.3956,208.72,208.63,22.0444537]
[1731683903623,22.0444537,208.69,208.62,22.0444537]
[1731683904044,22.0444537,208.69,208.53,23.876884]
[1731683904045,22.0444537,208.66,208.59,22.0444537]
[1731683904247,22.0444537,208.68,208.61,22.0444537]
[1731683904427,22.0444537,208.67,208.6,22.0444537]
[1731683904624,22.0444537,208.71,208.64,22.0444537]
[1731683904820,24.4398537,208.73,208.66,22.0444537]
[1731683905130,24.4396537,208.75,208.68,22.0444537]
[1731683905330,22.0444537,208.74,208.67,22.0444537]
[1731683905528,24.4396537,208.75,208.68,22.0444537]
[1731683905732,22.0444537,208.78,208.62,0.1]
[1731683905934,22.0444537,208.79,208.72,22.0444537]
[1731683906119,22.0444537,208.78,208.71,22.0444537]
[1731683906317,2.3942,208.84,208.76,22.0444537]
[1731683906652,22.0444537,208.82,208.69,20.25098]
[1731683906952,22.0444537,208.84,208.77,22.0444537]
[1731683907118,22.0444537,208.85,208.78,22.0444537]
[1731683907445,22.0444537,208.8,208.74,22.0444537]
[1731683907655,22.0444537,208.76,208.69,22.0444537]
[1731683907947,0.09367462,208.85,208.68,16.772]
[1731683907948,22.0444537,208.71,208.68,11.98]
[1731683908135,0.1,208.76,208.62,11.9831]
[1731683908340,22.0444537,208.67,208.6,22.0444537]
[1731683908639,22.0444537,208.68,208.62,4.7934]
[1731683908851,22.0444537,208.68,208.62,26.8378537]
[1731683909149,35.83172272,208.69,208.62,40.62512272]
[1731683909345,35.83172272,208.67,208.6,35.83172272]
[1731683909819,35.83172272,208.66,208.59,52.61092272]
[1731683910018,35.83172272,208.67,208.6,35.83172272]
[1731683910225,35.83172272,208.69,208.62,35.83172272]
[1731683910447,35.83172272,208.68,208.61,4.7935]
[1731683910629,35.83172272,208.65,208.59,16.7791]
[1731683911057,35.83172272,208.67,208.6,35.83172272]
[1731683911427,35.83172272,208.65,208.59,16.7791]
[1731683911726,38.22752272,208.7,208.53,13.3274]
[1731683911727,38.22782272,208.68,208.61,35.83172272]
[1731683911928,38.22752272,208.7,208.63,35.83172272]
[1731683912446,48.70832272,208.73,208.6,35.83172272]
[1731683912649,35.83172272,208.77,208.7,35.83172272]
[1731683912844,38.22632272,208.8,208.73,35.83172272]
[1731683913031,38.22632272,208.8,208.64,31.5893]
[1731683913032,38.22632272,208.8,208.72,35.83172272]
[1731683913237,35.83172272,208.78,208.7,35.83172272]
[1731683913436,35.83172272,208.77,208.7,35.83172272]
[1731683913635,2.3948,208.78,208.71,35.83172272]
[1731683914250,35.83172272,208.76,208.68,35.83172272]
[1731683914441,35.83172272,208.74,208.67,47.81202272]
[1731683914642,35.83172272,208.75,208.68,35.83172272]
[1731683914844,35.83172272,208.75,208.67,47.81202272]
[1731683915353,35.83172272,208.72,208.64,35.83172272]
[1731683915563,35.83172272,208.72,208.65,35.83172272]
[1731683915930,35.83172272,208.7,208.63,47.81462272]
[1731683916131,35.83172272,208.71,208.64,35.83172272]
[1731683916330,2.395,208.76,208.63,16.776]
[1731683916331,35.83172272,208.7,208.63,47.81462272]
[1731683916549,35.83172272,208.71,208.64,35.83172272]
[1731683917459,8.3827,208.76,208.69,35.83172272]
[1731683917460,38.22672272,208.76,208.69,35.83172272]
[1731683917655,37.3114,208.81,208.65,35.83172272]
[1731683917656,35.83172272,208.72,208.65,35.83172272]
[1731683918156,2.48847462,208.78,208.63,11.9829]
[1731683918157,35.83172272,208.73,208.66,35.83172272]
[1731683918451,35.83172272,208.74,208.67,35.83172272]
[1731683918659,35.83172272,208.68,208.6,35.83172272]
[1731683918866,35.83172272,208.67,208.59,35.83172272]
[1731683919027,35.83172272,208.68,208.6,35.83172272]
[1731683919434,35.83172272,208.67,208.59,35.83172272]
[1731683919634,38.22792272,208.66,208.59,35.83172272]
[1731683919936,35.83172272,208.65,208.58,4.7942]
[1731683920542,38.22792272,208.66,208.58,35.83172272]
[1731683921454,38.22792272,208.66,208.56,35.83172272]
[1731683921455,35.83172272,208.63,208.56,35.83172272]
[1731683921659,2.3962,208.66,208.6,35.83172272]
[1731683921837,2.3962,208.66,208.59,35.83172272]
[1731683922036,2.3962,208.66,208.52,16.7849]
[1731683922037,35.83172272,208.64,208.57,35.83172272]
[1731683922431,35.83172272,208.65,208.57,35.83172272]
[1731683922636,2.3964,208.64,208.57,35.83172272]
[1731683923052,35.83172272,208.67,208.6,35.83172272]
[1731683923283,35.83172272,208.7,208.63,35.83172272]
[1731683923438,18.0173,208.73,208.54,0.21916462]
[1731683923439,35.83172272,208.71,208.64,35.83172272]
[1731683923744,18.0173,208.73,208.55,0.12549]
[1731683923745,35.83172272,208.7,208.63,35.83172272]
[1731683924069,38.22692272,208.75,208.68,35.83172272]
[1731683924358,35.83172272,208.74,208.67,35.83172272]
[1731683924558,38.22692272,208.75,208.68,35.83172272]
[1731683924745,35.83172272,208.78,208.71,35.83172272]
[1731683924948,38.22622272,208.81,208.74,35.83172272]
[1731683925154,35.83172272,208.83,208.76,35.83172272]
[1731683925660,35.83172272,208.77,208.62,20.12549]
[1731683925963,0.1,208.76,208.61,11.984]
[1731683926256,19.25403162,208.83,208.51,0.1]
[1731683926257,0.35098,208.72,208.56,11.9864]
[1731683926468,24.127864,208.71,208.56,11.9864]
[1731683926646,35.83172272,208.61,208.56,11.9864]
[1731683927150,35.83172272,208.63,208.56,47.81812272]
[1731683927460,8.3855,208.69,208.58,35.83172272]
[1731683927461,35.83172272,208.65,208.58,35.83172272]
[1731683927762,35.83172272,208.66,208.59,35.83172272]
[1731683928464,2.3958,208.69,208.56,11.9864]
[1731683928465,35.83172272,208.62,208.56,11.9864]
[1731683928646,8.3855,208.69,208.56,11.9864]
[1731683928647,35.83172272,208.64,208.57,35.83172272]
[1731683928841,35.83172272,208.64,208.56,16.7811]
[1731683928842,35.83172272,208.62,208.56,16.7811]
[1731683929047,35.83172272,208.64,208.57,35.83172272]
[1731683929248,35.83172272,208.66,208.59,35.83172272]
[1731683929772,2.396,208.68,208.51,32.2856]
[1731683929948,35.83172272,208.57,208.52,4.7957]
[1731683930260,35.83172272,208.58,208.51,47.82092272]
[1731683930465,35.83172272,208.61,208.54,35.83172272]
[1731683930669,35.83172272,208.61,208.51,16.7851]
[1731683930670,2.3965,208.63,208.57,35.83172272]
[1731683930841,22.05937399,208.65,208.58,22.05937399]
[1731683931052,22.05937399,208.66,208.59,22.05937399]
[1731683931247,2.3955,208.72,208.61,22.05937399]
[1731683931462,2.3955,208.72,208.62,22.05937399]
[1731683931463,22.05937399,208.69,208.62,22.05937399]
[1731683931653,2.3955,208.72,208.51,11.9892]
[1731683931654,22.05937399,208.71,208.64,22.05937399]
[1731683932764,24.45497399,208.71,208.64,26.85217399]
[1731683933657,22.05937399,208.72,208.65,22.05937399]
[1731683933864,24.45487399,208.73,208.66,22.05937399]
[1731683934083,22.05937399,208.72,208.65,22.05937399]
[1731683934566,2.3955,208.73,208.64,16.7751]
[1731683934567,24.45487399,208.73,208.66,22.05937399]
[1731683934746,22.05937399,208.72,208.65,26.85187399]
[1731683935145,22.05937399,208.72,208.65,4.7925]
[1731683935346,22.05937399,208.71,208.65,4.7925]
[1731683935649,22.05937399,208.72,208.65,26.85187399]
[1731683935977,22.05937399,208.72,208.64,11.9823]
[1731683935978,22.05937399,208.71,208.64,34.04167399]
[1731683936263,22.05937399,208.71,208.64,11.9823]
[1731683936468,22.05937399,208.71,208.64,38.83457399]
[1731683936671,22.05937399,208.73,208.65,22.05937399]
[1731683937246,24.45437399,208.76,208.68,22.05937399]
[1731683937471,43.2897,208.81,208.7,22.05937399]
[1731683937779,20.60610927,208.87,208.7,22.05937399]
[1731683937780,5.9848,208.87,208.71,22.05937399]
[1731683938071,22.05937399,208.76,208.71,11.9783]
[1731683938752,22.05937399,208.76,208.65,0.12549]
[1731683938753,22.05937399,208.76,208.68,26.85127399]
[1731683938959,22.05937399,208.73,208.68,4.7919]
[1731683939554,22.05937399,208.74,208.68,4.7919]
[1731683940182,22.05937399,208.76,208.69,22.05937399]
[1731683940471,22.05937399,208.77,208.7,22.05937399]
[1731683940679,8.3791,208.85,208.68,16.7719]
[1731683940680,22.05937399,208.8,208.73,22.05937399]
[1731683940974,22.05937399,208.81,208.74,22.05937399]
[1731683941157,22.05937399,208.79,208.72,22.05937399]
[1731683941352,22.05937399,208.83,208.76,22.05937399]
[1731683941556,13.0747,208.88,208.79,22.05937399]
[1731683941557,22.05937399,208.86,208.79,22.05937399]
[1731683941757,7.16139097,208.93,208.71,52.79088]
[1731683941758,22.05937399,208.91,208.84,22.05937399]
[1731683942281,24.45257399,208.92,208.85,22.05937399]
[1731683942771,22.05937399,208.91,208.85,22.05937399]
[1731683943660,22.05937399,208.92,208.86,4.7878]
[1731683944371,12.0055,208.94,208.86,4.7878]
[1731683944372,24.45207399,208.97,208.9,22.05937399]
[1731683944558,24.45207399,208.97,208.91,22.05937399]
[1731683945061,22.05937399,208.96,208.89,22.05937399]
[1731683945378,22.05937399,208.96,208.81,0.1]
[1731683945379,22.05937399,208.97,208.91,22.05937399]
[1731683945569,22.05937399,208.93,208.86,22.05937399]
[1731683945757,22.05937399,208.9,208.84,11.9703]
[1731683945958,0.1,208.93,208.72,16.7688]
[1731683946162,0.1,208.91,208.72,16.7688]
[1731683946679,0.1,208.89,208.72,16.7688]
[1731683946867,0.25098,208.9,208.72,16.7688]
[1731683947070,23.776884,208.88,208.72,40.7243]
[1731683947256,35.7899193,208.87,208.8,35.7899193]
[1731683947462,35.7899193,208.85,208.78,35.7899193]
[1731683947959,35.7899193,208.86,208.79,35.7899193]
[1731683948166,59.5668033,208.88,208.82,35.7899193]
[1731683948383,59.5668033,208.88,208.81,40.5788193]
[1731683948765,35.7899193,208.9,208.84,35.7899193]
[1731683949070,48.2949193,209.0,208.81,16.7615]
[1731683949071,35.7899193,208.95,208.88,35.7899193]
[1731683949274,35.7899193,208.93,208.86,35.7899193]
[1731683949461,35.7899193,208.95,208.88,35.7899193]
[1731683949661,35.7899193,208.97,208.9,35.7899193]
[1731683949874,35.7899193,208.94,208.86,35.7899193]
[1731683950082,14.7974,209.0,208.81,47.7625193]
[1731683950083,0.1,208.97,208.81,47.7625193]
[1731683950277,2.3928,208.96,208.81,11.9726]
[1731683950674,2.3928,208.96,208.81,16.7616]
[1731683950879,24.027864,208.95,208.81,11.9726]
[1731683951178,35.7899193,208.84,208.77,35.7899193]
[1731683951481,35.7899193,208.9,208.83,35.7899193]
[1731683951695,35.7899193,208.89,208.82,35.7899193]
[1731683951989,35.7899193,208.88,208.81,35.7899193]
[1731683952164,35.7899193,208.88,208.81,40.5788193]
[1731683952361,35.7899193,208.92,208.85,35.7899193]
[1731683952579,23.776884,208.95,208.81,16.7615]
[1731683952580,35.7899193,208.95,208.88,35.7899193]
[1731683952787,35.7899193,208.97,208.9,35.7899193]
[1731683953175,35.7899193,208.96,208.89,35.7899193]
[1731683953366,35.7899193,208.98,208.91,35.7899193]
[1731683953599,35.7899193,209.0,208.93,35.7899193]
[1731683953886,35.7899193,209.02,208.95,35.7899193]
[1731683954088,35.7899193,209.03,208.96,35.7899193]
[1731683954688,35.7899193,209.02,208.95,40.5756193]
[1731683955086,35.7899193,209.01,208.93,52.5413193]
[1731683955295,35.7899193,208.97,208.89,40.5769193]
[1731683955503,35.7899193,208.92,208.87,11.9686]
[1731683955782,24.12153862,208.99,208.87,16.7562]
[1731683956163,0.09367462,208.99,208.87,11.9686]
[1731683956687,35.7899193,208.98,208.91,35.7899193]
[1731683957271,35.7899193,208.96,208.89,35.7899193]
[1731683957572,35.7899193,209.02,208.95,35.7899193]
[1731683957769,35.7899193,209.03,208.96,35.7899193]
[1731683958178,35.7899193,209.03,208.97,4.7853]
[1731683958379,66.9552193,209.1,208.99,35.7899193]
[1731683958380,35.7899193,209.05,208.99,35.7899193]
[1731683958691,35.7899193,209.04,208.98,35.7899193]
[1731683958872,35.7899193,209.06,208.99,35.7899193]
[1731683959184,35.7899193,209.09,209.02,35.7899193]
[1731683959893,35.7899193,209.07,209.0,35.7899193]
[1731683960392,35.7899193,209.07,209.01,4.7844]
[1731683960892,35.7899193,209.03,208.97,11.9634]
[1731683961192,35.7899193,209.1,208.88,4.7873]
[1731683961193,23.776884,208.97,208.88,4.7873]
[1731683961363,35.7899193,208.94,208.88,16.7558]
[1731683961674,35.7899193,208.98,208.91,35.7899193]
[1731683962375,35.7899193,208.96,208.89,35.7899193]
[1731683963269,35.7899193,208.91,208.84,35.7899193]
[1731683963489,35.7899193,208.92,208.85,35.7899193]
[1731683963793,35.7899193,208.94,208.87,35.7899193]
[1731683964091,35.7899193,208.92,208.85,35.7899193]
[1731683964480,35.7899193,208.92,208.86,4.7878]
[1731683964783,35.7899193,208.97,208.9,35.7899193]
[1731683964980,35.7899193,208.98,208.91,35.7899193]
[1731683965181,35.7899193,209.0,208.93,35.7899193]
[1731683965568,35.7899193,209.0,208.92,35.7899193]
[1731683965770,35.7899193,209.01,208.94,35.7899193]
[1731683966085,35.7899193,208.99,208.91,35.7899193]
[1731683966285,35.7899193,208.99,208.92,4.7865]
[1731683966590,35.7899193,208.99,208.93,35.7899193]
[1731683966793,35.7899193,208.99,208.92,52.5427193]
[1731683966977,35.7899193,209.0,208.93,35.7899193]
[1731683967392,35.7899193,208.99,208.92,52.5427193]
[1731683967974,35.7899193,208.97,208.92,11.9663]
[1731683968496,35.7899193,208.98,208.92,11.9663]
[1731683969183,35.7899193,209.0,208.93,35.7899193]
[1731683969383,35.7899193,209.01,208.94,35.7899193]
[1731683969579,35.7899193,209.01,208.95,35.7899193]
[1731683969895,35.7899193,209.04,208.98,35.7899193]
[1731683970098,35.7899193,209.04,208.97,35.7899193]
[1731683970605,35.7899193,209.04,208.98,4.7851]
[1731683970772,21.97479018,209.04,208.98,4.7851]
[1731683970972,21.97479018,209.04,208.98,38.72269018]
[1731683971284,21.97479018,209.07,209.0,21.97479018]
[1731683971595,21.97479018,209.06,208.99,21.97479018]
[1731683971797,21.97479018,209.07,209.0,21.97479018]
[1731683972675,21.97479018,209.06,209.0,4.7844]
[1731683972880,21.97479018,209.06,209.0,16.7461]
[1731683973283,21.97479018,209.01,208.96,11.9639]
[1731683973504,21.97479018,209.0,208.96,11.9639]
[1731683973883,21.97479018,209.02,208.96,11.9639]
[1731683974079,21.97479018,209.06,208.99,21.97479018]
[1731683974277,21.97479018,209.04,208.96,11.9639]
[1731683974518,21.97479018,209.07,209.0,21.97479018]
[1731683974680,21.97479018,209.08,209.01,21.97479018]
[1731683974998,21.97479018,209.09,209.02,21.97479018]
[1731683975185,21.97479018,209.09,209.01,21.97479018]
[1731683975395,2.3912,209.1,208.95,0.09367462]
[1731683975396,21.97479018,209.1,209.04,21.97479018]
[1731683975777,21.97479018,209.09,209.02,21.97479018]
[1731683975978,21.97479018,209.07,209.0,21.97479018]
[1731683976206,21.97479018,209.05,208.98,22.0684648]
[1731683976503,21.97479018,209.02,208.98,0.09367462]
[1731683976797,21.97479018,209.05,208.98,38.8162648]
[1731683976995,21.97479018,209.04,208.98,16.84147462]
[1731683977504,21.97479018,209.01,208.98,0.09367462]
[1731683978300,21.97479018,208.99,208.98,0.09367462]
[1731683978802,24.36719018,208.99,208.98,0.09367462]
[1731683979386,48.39505418,208.99,208.98,0.09367462]
[1731683979608,48.39505418,208.99,208.88,11.968]
[1731683979609,23.99604862,208.98,208.86,4.7877]
[1731683979911,23.99604862,208.98,208.83,16.7596]
[1731683979912,21.97479018,208.89,208.83,16.7596]
[1731683980211,21.97479018,208.91,208.84,21.97479018]
[1731683980408,21.97479018,208.85,208.79,11.9737]
[1731683980580,2.394,208.86,208.79,11.9737]
[1731683980776,21.97479018,208.8,208.75,4.7903]
[1731683981005,21.97479018,208.8,208.74,38.74179018]
[1731683981402,21.97479018,208.81,208.74,38.74179018]
[1731683982098,21.97479018,208.8,208.74,38.74179018]
[1731683982296,21.97479018,208.81,208.74,38.74179018]
[1731683982501,2.3942,208.84,208.74,38.74179018]
[1731683982502,21.97479018,208.8,208.74,38.74179018]
[1731683982811,35.78874577,208.8,208.74,52.55574577]
[1731683983013,35.78874577,208.75,208.69,11.9792]
[1731683983210,35.78874577,208.8,208.64,50.82872146]
[1731683983211,35.78874577,208.7,208.64,24.69402146]
[1731683983509,35.78874577,208.69,208.64,24.69402146]
[1731683983693,35.78874577,208.67,208.64,19.90132146]
[1731683983882,35.78874577,208.67,208.62,11.9829]
[1731683984083,12.7348,208.76,208.62,11.9829]
[1731683984084,26.297574,208.75,208.62,11.9829]
[1731683984394,0.09367462,208.74,208.62,11.9829]
[1731683984593,0.09367462,208.72,208.59,4.794]
[1731683984796,35.78874577,208.69,208.62,35.78874577]
[1731683984989,35.78874577,208.66,208.59,40.58274577]
[1731683985189,35.78874577,208.66,208.59,35.78874577]
[1731683985792,35.78874577,208.66,208.54,16.7833]
[1731683985793,35.78874577,208.65,208.58,35.78874577]
[1731683986105,35.78874577,208.68,208.62,4.7934]
[1731683986295,35.78874577,208.67,208.62,4.7934]
[1731683986607,35.78874577,208.69,208.62,40.58214577]
[1731683986981,35.78874577,208.72,208.65,35.78874577]
[1731683987407,0.1,208.82,208.62,16.7769]
[1731683987408,35.78874577,208.74,208.67,35.78874577]
[1731683988011,35.78874577,208.75,208.69,35.78874577]
[1731683988186,35.78874577,208.73,208.66,35.78874577]
[1731683988386,35.78874577,208.74,208.67,35.78874577]
[1731683989095,35.78874577,208.7,208.64,35.78874577]
[1731683989309,35.78874577,208.68,208.63,16.776]
[1731683989486,35.78874577,208.68,208.63,11.9829]
[1731683989688,35.78874577,208.71,208.65,35.78874577]
[1731683989882,2.3951,208.76,208.66,35.78874577]
[1731683989883,35.78874577,208.72,208.66,35.78874577]
[1731683990198,35.78874577,208.72,208.65,35.78874577]
[1731683990403,35.78874577,208.7,208.64,35.78874577]
[1731683990795,35.78874577,208.71,208.64,35.78874577]
[1731683991307,35.78874577,208.7,208.64,35.78874577]
[1731683991496,2.3953,208.74,208.65,35.78874577]
[1731683991497,35.78874577,208.72,208.65,35.78874577]
[1731683991916,35.78874577,208.7,208.64,11.9823]
[1731683992204,35.78874577,208.72,208.66,35.78874577]
[1731683992407,35.78874577,208.7,208.64,47.77104577]
[1731683992608,59.65930439,208.65,208.52,4.7957]
[1731683992786,35.78874577,208.58,208.52,4.7957]
[1731683993298,35.78874577,208.59,208.52,40.58444577]
[1731683993696,35.78874577,208.6,208.53,35.78874577]
[1731683993904,35.78874577,208.61,208.54,35.78874577]
[1731683994110,13.1498,208.69,208.52,16.7849]
[1731683994111,35.78874577,208.64,208.57,35.78874577]
[1731683994408,35.78874577,208.61,208.54,35.78874577]
[1731683994708,2.3963,208.66,208.56,35.78874577]
[1731683994709,35.78874577,208.63,208.56,35.78874577]
[1731683994915,35.78874577,208.66,208.59,35.78874577]
[1731683995412,35.78874577,208.66,208.59,40.58264577]
[1731683996302,13.1498,208.69,208.62,35.78874577]
[1731683996303,35.78874577,208.69,208.62,35.78874577]
[1731683996604,35.78874577,208.7,208.63,35.78874577]
[1731683997014,35.78874577,208.71,208.65,35.78874577]
[1731683997183,35.78874577,208.72,208.65,35.78874577]
[1731683997388,35.78874577,208.7,208.63,35.78874577]
[1731683997791,35.78874577,208.7,208.64,35.78874577]
[1731683997990,13.1498,208.74,208.66,35.78874577]
[1731683997991,35.78874577,208.72,208.66,35.78874577]
[1731683998298,35.78874577,208.73,208.66,35.78874577]
[1731683998493,35.88874577,208.8,208.63,35.78874577]
[1731683998494,35.78874577,208.7,208.63,35.78874577]
[1731683998691,35.78874577,208.72,208.66,35.78874577]
[1731683999304,35.78874577,208.73,208.66,35.78874577]
[1731683999510,35.78874577,208.73,208.67,35.78874577]
[1731683999702,35.78874577,208.76,208.7,35.78874577]
[1731683999897,2.3949,208.78,208.68,35.78874577]
[1731683999898,35.78874577,208.75,208.68,35.78874577]
[1731684000113,35.78874577,208.72,208.66,35.78874577]
[1731684000293,35.78874577,208.74,208.68,35.78874577]
[1731684000693,35.78874577,208.71,208.64,35.78874577]
[1731684001109,35.78874577,208.67,208.62,16.7769]
[1731684001296,35.78874577,208.71,208.64,35.78874577]
[1731684001613,35.78874577,208.69,208.62,52.56564577]
[1731684002008,35.78874577,208.68,208.62,16.7769]
[1731684002207,35.78874577,208.65,208.6,4.7938]
[1731684002419,35.78874577,208.64,208.6,4.7938]
[1731684002616,35.78874577,208.65,208.6,4.7938]
[1731684002794,35.78874577,208.74,208.64,35.78874577]
[1731684002991,2.3946,208.8,208.67,22.03589232]
[1731684003209,22.03589232,208.75,208.69,22.03589232]
[1731684003422,2.3946,208.8,208.66,11.9811]
[1731684003599,0.09367462,208.75,208.62,4.7934]
[1731684003792,0.09367462,208.75,208.61,11.9837]
[1731684004100,0.09367462,208.75,208.52,54.1357]
[1731684004101,0.1,208.7,208.52,30.1572]
[1731684004308,43.4106,208.69,208.53,7.2753]
[1731684004620,24.027864,208.68,208.53,4.7953]
[1731684004818,35.86441888,208.57,208.53,4.7953]
[1731684005018,35.86441888,208.59,208.53,16.7839]
[1731684005318,35.86441888,208.59,208.53,52.64831888]
[1731684005515,35.86441888,208.56,208.53,16.7839]
[1731684006025,35.86441888,208.6,208.53,52.64831888]
[1731684006203,35.86441888,208.64,208.57,35.86441888]
[1731684006402,35.86441888,208.59,208.53,16.7839]
[1731684006606,35.86441888,208.56,208.53,16.7839]
[1731684006795,35.86441888,208.57,208.53,16.7839]
[1731684007223,35.86441888,208.55,208.53,11.9886]
[1731684007720,35.86441888,208.57,208.53,11.9886]
[1731684007915,35.86441888,208.55,208.53,11.9886]
[1731684008217,35.86441888,208.56,208.53,11.9886]
[1731684008595,35.86441888,208.55,208.53,11.9886]
[1731684008797,35.86441888,208.58,208.53,11.9886]
[1731684009224,35.86441888,208.56,208.53,11.9886]
[1731684009558,2.3963,208.65,208.5,4.796]
[1731684009559,35.86441888,208.54,208.5,4.796]
[1731684009705,35.86441888,208.51,208.49,11.9909]
[1731684009892,35.86441888,208.52,208.47,4.7967]
[1731684010092,35.86441888,208.53,208.47,4.7967]
[1731684010295,0.09367462,208.59,208.47,4.7967]
[1731684010296,35.86441888,208.54,208.48,35.86441888]
[1731684010497,35.86441888,208.54,208.49,16.7872]
[1731684010797,35.86441888,208.55,208.49,16.7872]
[1731684011120,35.86441888,208.56,208.5,35.86441888]
[1731684011308,0.09367462,208.59,208.54,35.86441888]
[1731684011503,0.09367462,208.59,208.49,16.7872]
[1731684011504,0.09367462,208.59,208.55,35.86441888]
[1731684011813,0.09367462,208.59,208.58,55.98990888]
[1731684012021,35.86441888,208.73,208.59,20.12549]
[1731684012211,12.3429,208.76,208.62,0.21916462]
[1731684012399,2.3948,208.79,208.62,0.44465462]
[1731684012600,2.3945,208.81,208.64,20.0]
[1731684013098,13.1883,208.82,208.64,20.0]
[1731684013099,35.86441888,208.79,208.72,35.86441888]
[1731684013326,13.1883,208.82,208.68,35.86441888]
[1731684013327,35.86441888,208.75,208.68,35.86441888]
[1731684013629,35.86441888,208.75,208.63,16.776]
[1731684013630,35.86441888,208.72,208.66,35.86441888]
[1731684013837,35.86441888,208.72,208.65,35.86441888]
[1731684014006,35.86441888,208.75,208.68,35.86441888]
[1731684014206,35.86441888,208.76,208.69,35.86441888]
[1731684014419,35.86441888,208.76,208.7,35.86441888]
[1731684014620,35.86441888,208.74,208.67,35.86441888]
[1731684014924,35.86441888,208.7,208.65,16.7744]
[1731684015130,35.86441888,208.67,208.65,11.9817]
[1731684015310,35.86441888,208.66,208.65,11.9817]
[1731684015509,35.86441888,208.7,208.65,16.7744]
[1731684015737,35.86441888,208.71,208.65,16.7744]
[1731684016031,35.86441888,208.71,208.65,52.63881888]
[1731684016338,35.86441888,208.68,208.65,16.7744]
[1731684016630,35.86441888,208.73,208.67,16.7728]
[1731684017065,35.86441888,208.72,208.67,16.7728]
[1731684017341,35.86441888,208.73,208.67,52.63721888]
[1731684017517,35.86441888,208.73,208.67,16.7728]
[1731684017706,35.86441888,208.81,208.72,35.86441888]
[1731684017907,35.86441888,208.83,208.77,35.86441888]
[1731684018218,35.86441888,208.85,208.78,35.86441888]
[1731684018621,35.86441888,208.85,208.71,0.09367462]
[1731684018622,35.86441888,208.86,208.79,35.86441888]
[1731684018939,35.86441888,208.9,208.84,35.86441888]
[1731684019232,2.3933,208.92,208.85,35.86441888]
[1731684019233,35.86441888,208.92,208.85,35.86441888]
[1731684019410,35.86441888,208.93,208.86,35.86441888]
[1731684019813,35.86441888,208.91,208.85,35.86441888]
[1731684020220,35.86441888,208.91,208.84,35.86441888]
[1731684020434,35.86441888,208.89,208.81,35.86441888]
[1731684020642,35.86441888,208.83,208.77,35.86441888]
[1731684020935,35.86441888,208.78,208.68,31.5749]
[1731684021122,35.86441888,208.75,208.7,11.9788]
[1731684021318,0.2,208.86,208.7,11.9788]
[1731684021543,0.2,208.86,208.55,93.9742]
[1731684021544,0.2,208.8,208.65,11.9817]
[1731684021713,35.86441888,208.67,208.65,11.9817]
[1731684021913,35.86441888,208.69,208.65,11.9817]
[1731684022133,0.12549,208.79,208.65,47.84611888]
[1731684022134,35.86441888,208.72,208.65,47.84611888]